[Event "SVK Extraliga 2019-20"]
[Site "Slovakia"]
[Date "2019.10.20"]
[Round "2.2"]
[White "Bulski, Krzysztof"]
[Black "Zilka, Stepan"]
[Result "1/2-1/2"]
[ECO "B17"]
[WhiteElo "2525"]
[BlackElo "2536"]
[Annotator "ChessBase"]
[PlyCount "53"]
[EventDate "2019.10.19"]
[EventType "team-tourn"]
[EventCountry "SVK"]
[SourceTitle "playchess.com"]
[Source "ChessBase"]
[SourceQuality "1"]
[WhiteTeam "Dunajov"]
[BlackTeam "Prakovce"]
[TimeControl "40/5400+30:1800+30"]

1. e4 {[%emt 0:00:00]} c6 {[%emt 0:00:00]} 2. d4 {[%emt 0:00:00]} d5 {[%emt 0:00:00]} 3. Nc3 {[%emt 0:00:00]} dxe4 {[%emt 0:00:06]} 4. Nxe4 {[%emt 0:00:00]} Nd7 {[%emt 0:00:04]} 5. Bc4 {[%emt 0:00:47]} Ngf6 {[%emt 0:00:32]} 6. Ng5 {[%emt 0:00:47]} e6 {[%emt 0:00:07]} 7. Qe2 {[%emt 0:00:25]} Nb6 {[%emt 0:00:06]} 8. Bd3 {[%emt 0:00:24]} h6 {[%emt 0:02:55]} 9. N5f3 {[%emt 0:00:06]} c5 {[%emt 0:02:25]} 10. dxc5 {[%emt 0:00:29]} Bxc5 {[%emt 0:00:12]} 11. Ne5 {[%emt 0:00:32]} Nbd7 {[%emt 0:01:54]} 12. Ngf3 {[%emt 0:00:42]} Nxe5 {[%emt 0:04:17]} 13. Nxe5 {[%emt 0:00:27]} O-O {[%emt 0:03:59]} 14. O-O {[%emt 0:00:21]} Qc7 {[%emt 0:02:51]} 15. Bf4 {[%emt 0:12:23]} Qe7 {[%emt 0:09:43]} 16. Rad1 {[%emt 0:11:51]} Rd8 {[%emt 0:00:05]} 17. c3 {[%emt 0:07:09]} Bd7 {[%emt 0:02:15]} 18. Nxd7 {[%emt 0:00:39]} Rxd7 {[%emt 0:00:16]} 19. Bc2 {[%emt 0:04:38]} Rad8 {[%emt 0:01:12]} 20. Rxd7 {[%emt 0:00:24]} Rxd7 {[%emt 0:00:08]} 21. Rd1 {[%emt 0:00:17]} Rxd1+ {[%emt 0:04:17]} 22. Bxd1 {[%emt 0:01:00]} Nd5 {[%emt 0:04:41]} 23. Bc1 {[%emt 0:01:04]} e5 {[%emt 0:02:59]} 24. Qg4 {[%emt 0:11:19]} Nf6 {[%emt 0:06:28]} 25. Qc8+ {[%emt 0:07:14]} Kh7 {[%emt 0:00:02]} 26. Qf5+ {[%emt 0:00:39]} g6 {[%emt 0:01:01]} 27. Qh3 {[%emt 0:00:43]} 1/2-1/2

[Event "SVK Extraliga 2019-20"]
[Site "Slovakia"]
[Date "2019.10.20"]
[Round "2.2"]
[White "Bernasek, Jan"]
[Black "Haring, Filip"]
[Result "0-1"]
[ECO "E59"]
[WhiteElo "2490"]
[BlackElo "2294"]
[Annotator "ChessBase"]
[PlyCount "70"]
[EventDate "2019.10.19"]
[EventType "team-tourn"]
[EventCountry "SVK"]
[SourceTitle "playchess.com"]
[Source "ChessBase"]
[SourceQuality "1"]
[BlackTeam "Liptovska"]
[TimeControl "40/5400+30:1800+30"]

1. d4 {[%emt 0:00:00]} Nf6 {[%emt 0:00:04]} 2. c4 {[%emt 0:00:00]} e6 {[%emt 0:00:06]} 3. Nc3 {[%emt 0:00:09]} Bb4 {[%emt 0:00:07]} 4. e3 {[%emt 0:00:18]} O-O {[%emt 0:01:22]} 5. Nf3 {[%emt 0:00:15]} d5 {[%emt 0:01:15]} 6. Bd3 {[%emt 0:00:10]} c5 {[%emt 0:00:49]} 7. O-O {[%emt 0:00:13]} Nc6 {[%emt 0:01:06]} 8. a3 {[%emt 0:00:26]} Bxc3 {[%emt 0:00:22]} 9. bxc3 {[%emt 0:00:06]} dxc4 10. Bxc4 {[%emt 0:00:05]} Qc7 {[%emt 0:01:23]} 11. Bb2 {[%emt 0:00:56]} Rd8 {[%emt 0:01:44]} 12. Qe2 {[%emt 0:04:04]} e5 {[%emt 0:10:31]} 13. h3 {[%emt 0:01:21]} Bf5 {[%emt 0:06:14]} 14. Rfd1 {[%emt 0:04:26]} e4 {[%emt 0:10:50]} 15. Nd2 {[%emt 0:02:06]} Bg6 {[%emt 0:02:03]} 16. Rdc1 {[%emt 0:05:34]} Ne7 {[%emt 0:10:48]} 17. a4 {[%emt 0:03:18]} Nf5 {[%emt 0:03:30]} 18. Ba3 {[%emt 0:05:54]} b6 {[%emt 0:00:16]} 19. Rab1 {[%emt 0:01:00]} Nh4 {[%emt 0:01:19]} 20. Qe1 {[%emt 0:11:37]} Nd5 {[%emt 0:10:35]} 21. Bf1 {[%emt 0:09:51]} Qe7 {[%emt 0:04:22]} 22. Qd1 {[%emt 0:08:59]} Bf5 {[%emt 0:03:54]} 23. Kh1 {[%emt 0:07:01]} Rac8 {[%emt 0:03:27]} 24. Nc4 {[%emt 0:15:28]} Rc6 {[%emt 0:02:17]} 25. Ne5 {[%emt 0:06:18]} Rh6 {[%emt 0:00:06]} 26. Ng4 {[%emt 0:00:50]} Rg6 {[%emt 0:07:23]} 27. dxc5 {[%emt 0:03:01]} Bxg4 {[%emt 0:03:07]} 28. hxg4 {[%emt 0:01:47]} Qc7 {[%emt 0:05:54]} 29. g5 {[%emt 0:07:37]} Rxg5 {[%emt 0:02:14]} 30. cxb6 {[%emt 0:00:20]} Nxb6 {[%emt 0:02:22]} 31. Qe2 {[%emt 0:01:08]} Nf3 {[%emt 0:00:16]} 32. Qxf3 {[%emt 0:01:07]} exf3 {[%emt 0:00:09]} 33. g3 {[%emt 0:00:05]} Rd2 {[%emt 0:01:14]} 34. Rd1 {[%emt 0:00:50]} Rxf2 {[%emt 0:00:42]} 35. Bd6 {[%emt 0:00:07]} Rxf1+ {[%emt 0:01:27]} 0-1

[Event "SVK Extraliga 2019-20"]
[Site "Slovakia"]
[Date "2019.10.20"]
[Round "2.2"]
[White "Nemeth, Miklos"]
[Black "Nayhebaver, Martin"]
[Result "1-0"]
[ECO "B53"]
[WhiteElo "2488"]
[BlackElo "2481"]
[Annotator "RC"]
[PlyCount "123"]
[EventDate "2019.10.19"]
[EventType "team-tourn"]
[EventCountry "SVK"]
[SourceTitle "playchess.com"]
[Source "ChessBase"]
[SourceQuality "1"]
[WhiteTeam "Streda"]
[BlackTeam "Zilina"]
[TimeControl "40/5400+30:1800+30"]

1. e4 {[%emt 0:00:00]} c5 {[%emt 0:00:00]} 2. Nf3 {[%emt 0:00:00]} d6 {[%emt 0:00:08]} 3. d4 {[%emt 0:00:00]} cxd4 {[%emt 0:00:06]} 4. Qxd4 {[%emt 0:00:00]} Nf6 {[%emt 0:00:23]} 5. Nc3 {[%emt 0:01:44]} Nc6 {[%emt 0:00:34]} 6. Bb5 {[%emt 0:00:07]} Bd7 {[%emt 0:00:04]} 7. Bxc6 {[%emt 0:00:10]} Bxc6 {[%emt 0:00:06]} 8. Bg5 {[%emt 0:00:06]} e6 {[%emt 0:00:25]} 9. O-O-O {[%emt 0:00:07]} Be7 {[%emt 0:00:24]} 10. Qd3 {[%emt 0:00:22]} Qa5 {[%emt 0:01:46]} 11. h4 {[%emt 0:00:05]} h6 {[%emt 0:02:08]} 12. Bd2 {[%emt 0:00:05]} Qc7 {[%emt 0:02:58]} 13. Nd4 {[%emt 0:01:52]} a6 {[%emt 0:03:35]} 14. f4 {[%emt 0:07:07]} d5 {[%emt 0:08:17]} 15. e5 {[%emt 0:00:24]} Nd7 {[%emt 0:02:30]} 16. Qg3 {[%emt 0:03:08]} O-O-O {[%emt 0:14:48]} 17. Qxg7 {[%emt 0:04:50]} Bc5 {[%emt 0:02:23]} 18. Nce2 {[%emt 0:05:34]} Bxd4 {[%emt 0:17:23]} 19. Nxd4 {[%emt 0:00:10]} Nc5 {[%emt 0:00:04]} 20. Qg3 {[%emt 0:09:16]} Rdg8 {[%emt 0:01:03]} 21. Qf3 {[%emt 0:00:54]} h5 {[%emt 0:00:14]} 22. Be1 {[%emt 0:03:37]} Rg4 {[%emt 0:02:35]} 23. g3 {[%emt 0:02:18]} Rhg8 {[%emt 0:01:02]} 24. Qa3 {[%emt 0:04:47]} Ne4 {[%emt 0:04:22]} 25. Rd3 {[%emt 0:00:38]} Bb5 {[%emt 0:04:32]} 26. Nxb5 {[%emt 0:12:17]} axb5 {[%emt 0:00:08]} 27. Rf1 {[%emt 0:02:12]} Kb8 {[%emt 0:06:38]} 28. Bb4 {[%emt 0:07:05]} Qb6 {[%emt 0:19:49]} 29. Be1 {[%emt 0:10:28]} Qc7 {[%emt 0:01:05]} 30. Rff3 {[%emt 0:06:23]} Rc8 {[%emt 0:00:48]} 31. Bc3 {[%emt 0:04:20]} Qc4 {[%emt 0:02:13]} 32. b3 {[%emt 0:01:46]} Qc6 {[%emt 0:01:02]} 33. Qb2 {[%emt 0:01:31]} Rcg8 {[%emt 0:00:57]} 34. Be1 {[%emt 0:00:46]} Qc5 {[%emt 0:00:43]} 35. Rfe3 {[%emt 0:01:27]} Qb6 {[%emt 0:01:08]} 36. Qa3 {[%emt 0:01:20]} Nc5 {[%emt 0:00:19]} 37. Rd4 {[%emt 0:02:24]} Qa7 {[%emt 0:00:48]} 38. Qb4 {[%emt 0:01:33]} Ne4 {[%emt 0:00:49]} 39. Kb2 {[%emt 0:02:39]} Rc8 {[%emt 0:00:27]} 40. c3 {[%emt 0:04:36]} Qa6 {[%emt 0:00:41]} 41. Qe7 {[%emt 0:02:12]} Rg7 {[%emt 0:06:37]} 42. f5 {[%emt 0:06:19]} Qb6 {[%emt 0:00:54]} 43. fxe6 {[%emt 0:03:25]} Qxe6 {[%emt 0:00:23]} 44. Qb4 {[%emt 0:00:12]} Qc6 {[%emt 0:04:14]} 45. Red3 {[%emt 0:08:19]} Rg4 {[%emt 0:00:10]} 46. Rf3 {[%emt 0:00:17]} Nc5 {[%emt 0:09:01]} 47. Rff4 {[%emt 0:08:26]} Rcg8 {[%emt 0:02:45]} 48. Rd1 {[%emt 0:01:03]} Ne6 {[%emt 0:06:54]} 49. Rxg4 {[%emt 0:00:06]} Rxg4 {[%emt 0:00:04]} 50. Qd6+ {[%emt 0:01:27]} Qxd6 {[%emt 0:00:07]} 51. exd6 {[%emt 0:00:04]} Re4 {[%emt 0:00:03]} 52. Bd2 {[%emt 0:01:31]} Re2 {[%emt 0:02:23]} 53. Ka3 {[%emt 0:00:43]} Kc8 {[%emt 0:00:45]} 54. Bf4 {[%emt 0:01:17]} d4 {[%emt 0:00:14]} 55. cxd4 {[%emt 0:00:08]} Nxf4 {[%emt 0:00:13]} 56. gxf4 {[%emt 0:00:05]} Kd7 {[%emt 0:00:25]} 57. Rg1 {[%emt 0:00:24]} Re4 {[%emt 0:03:02]} 58. Rg5 {[%emt 0:00:16]} b4+ {[%emt 0:00:32]} 59. Kxb4 {[%emt 0:00:30]} Rxf4 {[%emt 0:00:01]} 60. Rxh5 {[%emt 0:00:17]} Rxd4+ {[%emt 0:00:06]} 61. Kc5 {[%emt 0:00:06]} Rxd6 {[%emt 0:00:07]} 62. Rd5 {[%emt 0:00:22]} 1-0

[Event "SVK Extraliga 2019-20"]
[Site "Slovakia"]
[Date "2019.10.20"]
[Round "2.2"]
[White "Chovan, Milan"]
[Black "Markos, Jan"]
[Result "1/2-1/2"]
[ECO "E32"]
[WhiteElo "2318"]
[BlackElo "2572"]
[Annotator "ChessBase"]
[PlyCount "54"]
[EventDate "2019.10.19"]
[EventType "team-tourn"]
[EventCountry "SVK"]
[SourceTitle "playchess.com"]
[Source "ChessBase"]
[SourceQuality "1"]
[WhiteTeam "Podhajska"]
[BlackTeam "Snina"]
[TimeControl "40/5400+30:1800+30"]

1. d4 {[%emt 0:00:00]} Nf6 {[%emt 0:00:01]} 2. c4 {[%emt 0:00:00]} e6 {[%emt 0:00:10]} 3. Nc3 {[%emt 0:00:00]} Bb4 {[%emt 0:00:05]} 4. Qc2 {[%emt 0:00:00]} O-O {[%emt 0:00:10]} 5. a3 {[%emt 0:00:00]} Bxc3+ {[%emt 0:00:13]} 6. Qxc3 {[%emt 0:00:00]} b5 {[%emt 0:01:14]} 7. cxb5 {[%emt 0:00:09]} c6 {[%emt 0:00:07]} 8. Bg5 {[%emt 0:00:34]} cxb5 {[%emt 0:00:10]} 9. e3 {[%emt 0:00:14]} Bb7 {[%emt 0:00:26]} 10. Nf3 {[%emt 0:00:55]} h6 {[%emt 0:00:26]} 11. Bh4 {[%emt 0:00:08]} a6 {[%emt 0:02:40]} 12. Bd3 {[%emt 0:11:10]} d6 {[%emt 0:14:24]} 13. O-O {[%emt 0:08:24]} Nbd7 {[%emt 0:06:19]} 14. Bg3 {[%emt 0:07:34]} Qb6 {[%emt 0:09:27]} 15. Rac1 {[%emt 0:07:51]} Rfc8 {[%emt 0:06:31]} 16. Qb4 {[%emt 0:00:53]} Be4 {[%emt 0:01:03]} 17. Be2 {[%emt 0:02:32]} Ne8 {[%emt 0:00:54]} 18. Nd2 {[%emt 0:03:38]} Bc6 {[%emt 0:01:10]} 19. Rfe1 {[%emt 0:06:10]} a5 {[%emt 0:05:06]} 20. Qb3 {[%emt 0:00:26]} Ndf6 {[%emt 0:03:34]} 21. f3 {[%emt 0:07:34]} Rab8 {[%emt 0:16:05]} 22. Qd3 {[%emt 0:04:48]} b4 {[%emt 0:01:29]} 23. Nc4 {[%emt 0:01:38]} Qd8 {[%emt 0:00:25]} 24. Qd2 {[%emt 0:03:28]} Nh5 {[%emt 0:06:02]} 25. Bf2 {[%emt 0:01:40]} Nhf6 {[%emt 0:00:28]} 26. Bg3 {[%emt 0:00:23]} Nh5 {[%emt 0:00:18]} 27. Bf2 {[%emt 0:00:05]} Nhf6 {[%emt 0:00:16]} 1/2-1/2

[Event "SVK Extraliga 2019-20"]
[Site "Slovakia"]
[Date "2019.10.20"]
[Round "2.3"]
[White "Kriebel, Tadeas"]
[Black "Jakab, Bela"]
[Result "1-0"]
[ECO "C18"]
[WhiteElo "2528"]
[BlackElo "2244"]
[Annotator "ChessBase"]
[PlyCount "79"]
[EventDate "2019.10.19"]
[EventType "team-tourn"]
[EventCountry "SVK"]
[SourceTitle "playchess.com"]
[Source "ChessBase"]
[SourceQuality "1"]
[WhiteTeam "Snina"]
[BlackTeam "Komarno"]
[TimeControl "40/5400+30:1800+30"]

1. e4 {[%emt 0:00:00]} e6 {[%emt 0:00:00]} 2. d4 {[%emt 0:00:00]} d5 {[%emt 0:00:00]} 3. Nc3 {[%emt 0:00:00]} Bb4 {[%emt 0:00:00]} 4. e5 {[%emt 0:00:00]} Ne7 {[%emt 0:00:00]} 5. a3 {[%emt 0:00:00]} Bxc3+ {[%emt 0:00:00]} 6. bxc3 {[%emt 0:00:00]} c5 {[%emt 0:00:07]} 7. Qg4 {[%emt 0:00:00]} Qc7 {[%emt 0:00:58]} 8. Qxg7 {[%emt 0:00:06]} Rg8 {[%emt 0:00:06]} 9. Qxh7 {[%emt 0:00:03]} cxd4 {[%emt 0:00:07]} 10. Qd3 {[%emt 0:00:03]} dxc3 {[%emt 0:03:05]} 11. Nf3 {[%emt 0:04:50]} Bd7 {[%emt 0:02:11]} 12. h4 {[%emt 0:01:29]} Nbc6 {[%emt 0:01:40]} 13. Qxc3 {[%emt 0:01:08]} O-O-O {[%emt 0:01:47]} 14. Bg5 {[%emt 0:02:00]} Rde8 {[%emt 0:13:19]} 15. Bd3 {[%emt 0:02:23]} Ng6 {[%emt 0:07:55]} 16. Bxg6 {[%emt 0:00:14]} fxg6 {[%emt 0:00:09]} 17. O-O {[%emt 0:03:33]} Na5 {[%emt 0:02:22]} 18. Qxc7+ {[%emt 0:03:06]} Kxc7 {[%emt 0:00:07]} 19. Bf6 {[%emt 0:00:37]} Ba4 {[%emt 0:02:19]} 20. Nd4 {[%emt 0:31:13]} Kd7 {[%emt 0:01:24]} 21. Rfb1 {[%emt 0:00:17]} Rc8 {[%emt 0:00:51]} 22. Ra2 {[%emt 0:00:29]} Rc3 {[%emt 0:07:05]} 23. Rb4 {[%emt 0:01:08]} Bc6 {[%emt 0:00:10]} 24. f3 {[%emt 0:06:30]} b6 {[%emt 0:02:06]} 25. Kf2 {[%emt 0:00:23]} Rc8 {[%emt 0:01:33]} 26. g4 {[%emt 0:01:42]} Bb7 {[%emt 0:11:39]} 27. h5 {[%emt 0:00:46]} Rf8 {[%emt 0:16:03]} 28. hxg6 {[%emt 0:05:17]} Ba6 {[%emt 0:03:49]} 29. g7 {[%emt 0:00:47]} Rg8 {[%emt 0:00:12]} 30. Ra1 {[%emt 0:00:38]} Nc6 {[%emt 0:01:46]} 31. Rh1 {[%emt 0:05:42]} Nxb4 {[%emt 0:00:49]} 32. axb4 {[%emt 0:00:26]} Rc4 {[%emt 0:05:52]} 33. Ke3 {[%emt 0:00:19]} Bb7 {[%emt 0:00:56]} 34. Rh8 {[%emt 0:00:49]} Rcc8 {[%emt 0:00:07]} 35. b5 {[%emt 0:00:31]} a5 {[%emt 0:01:01]} 36. bxa6 {[%emt 0:00:05]} Bxa6 {[%emt 0:00:04]} 37. Kf4 {[%emt 0:01:15]} b5 {[%emt 0:00:36]} 38. Kg5 {[%emt 0:01:02]} b4 {[%emt 0:00:04]} 39. Kh6 {[%emt 0:00:46]} Bf1 {[%emt 0:01:39]} 40. Rxg8 {[%emt 0:00:27]} 1-0

[Event "SVK Extraliga 2019-20"]
[Site "Slovakia"]
[Date "2019.10.20"]
[Round "2.3"]
[White "Ftacnik, Lubomir"]
[Black "Kozak, Adam"]
[Result "1/2-1/2"]
[ECO "A17"]
[WhiteElo "2520"]
[BlackElo "2512"]
[Annotator "ChessBase"]
[PlyCount "56"]
[EventDate "2019.10.19"]
[EventType "team-tourn"]
[EventCountry "SVK"]
[SourceTitle "playchess.com"]
[Source "ChessBase"]
[SourceQuality "1"]
[WhiteTeam "Slovakia"]
[BlackTeam "Hungary"]
[WhiteTeamCountry "SVK"]
[BlackTeamCountry "HUN"]
[TimeControl "40/5400+30:1800+30"]

1. Nf3 {[%emt 0:00:00]} Nf6 {[%emt 0:00:00]} 2. c4 {[%emt 0:00:00]} e6 {[%emt 0:00:00]} 3. Nc3 {[%emt 0:00:34]} b6 {[%emt 0:00:08]} 4. g3 {[%emt 0:01:43]} Bb7 {[%emt 0:00:08]} 5. Bg2 {[%emt 0:00:02]} Be7 {[%emt 0:00:10]} 6. O-O {[%emt 0:00:00]} O-O {[%emt 0:00:04]} 7. Re1 {[%emt 0:01:29]} Ne4 {[%emt 0:00:05]} 8. Nxe4 {[%emt 0:04:38]} Bxe4 {[%emt 0:00:03]} 9. d3 {[%emt 0:01:19]} Bb7 {[%emt 0:00:05]} 10. e4 {[%emt 0:00:00]} c5 {[%emt 0:00:04]} 11. d4 {[%emt 0:01:51]} cxd4 {[%emt 0:00:04]} 12. Nxd4 {[%emt 0:00:10]} Nc6 {[%emt 0:00:02]} 13. Be3 {[%emt 0:07:11]} Nxd4 {[%emt 0:07:16]} 14. Bxd4 {[%emt 0:01:32]} Qc7 {[%emt 0:01:51]} 15. Rc1 {[%emt 0:01:36]} Bc6 {[%emt 0:09:00]} 16. Qd2 {[%emt 0:08:27]} a5 {[%emt 0:07:42]} 17. Qe3 {[%emt 0:10:23]} Rab8 {[%emt 0:00:27]} 18. Re2 {[%emt 0:01:58]} e5 {[%emt 0:06:13]} 19. Bc3 {[%emt 0:00:08]} Bc5 {[%emt 0:00:04]} 20. Qd2 {[%emt 0:03:13]} d6 {[%emt 0:02:35]} 21. a3 {[%emt 0:03:27]} a4 {[%emt 0:00:02]} 22. Bb4 {[%emt 0:00:30]} Bd4 {[%emt 0:02:41]} 23. Bc3 {[%emt 0:00:13]} Bc5 {[%emt 0:00:04]} 24. Bb4 {[%emt 0:00:04]} Rbd8 {[%emt 0:01:21]} 25. Rd1 {[%emt 0:09:12]} Bd4 {[%emt 0:03:15]} 26. Bc3 {[%emt 0:00:07]} Bc5 {[%emt 0:00:11]} 27. Bb4 {[%emt 0:00:02]} Bd4 {[%emt 0:04:59]} 28. Bc3 {[%emt 0:00:07]} Bc5 {[%emt 0:00:03]} 1/2-1/2

[Event "SVK Extraliga 2019-20"]
[Site "Slovakia"]
[Date "2019.10.20"]
[Round "2.3"]
[White "Manik, Mikulas"]
[Black "Tazbir, Marcin"]
[Result "1/2-1/2"]
[ECO "B67"]
[WhiteElo "2371"]
[BlackElo "2529"]
[Annotator "ChessBase"]
[PlyCount "27"]
[EventDate "2019.10.19"]
[EventType "team-tourn"]
[EventCountry "SVK"]
[SourceTitle "playchess.com"]
[Source "ChessBase"]
[SourceQuality "1"]
[WhiteTeam "Prakovce"]
[BlackTeam "Dunajov"]
[TimeControl "40/5400+30:1800+30"]

1. e4 {[%emt 0:00:00]} c5 {[%emt 0:00:00]} 2. Nf3 {[%emt 0:00:00]} d6 {[%emt 0:00:00]} 3. d4 {[%emt 0:00:00]} Nf6 {[%emt 0:00:00]} 4. Nc3 {[%emt 0:00:00]} cxd4 {[%emt 0:00:00]} 5. Nxd4 {[%emt 0:00:00]} Nc6 {[%emt 0:00:05]} 6. Bg5 {[%emt 0:00:03]} e6 {[%emt 0:00:06]} 7. Qd2 {[%emt 0:00:14]} a6 {[%emt 0:03:01]} 8. O-O-O {[%emt 0:00:10]} Bd7 {[%emt 0:00:16]} 9. f3 {[%emt 0:00:16]} h6 {[%emt 0:03:33]} 10. Be3 {[%emt 0:10:25]} h5 {[%emt 0:00:19]} 11. Kb1 {[%emt 0:02:52]} Qc7 {[%emt 0:03:39]} 12. Nxc6 {[%emt 0:08:57]} Bxc6 {[%emt 0:04:23]} 13. Ne2 {[%emt 0:00:43]} Be7 {[%emt 0:04:07]} 14. Nd4 {[%emt 0:00:09]} 1/2-1/2

[Event "SVK Extraliga 2019-20"]
[Site "Slovakia"]
[Date "2019.10.20"]
[Round "2.3"]
[White "Hrabusa, Matej"]
[Black "Jurcik, Marian"]
[Result "1/2-1/2"]
[ECO "B15"]
[WhiteElo "2368"]
[BlackElo "2486"]
[Annotator "ChessBase"]
[PlyCount "44"]
[EventDate "2019.10.19"]
[EventType "team-tourn"]
[EventCountry "SVK"]
[SourceTitle "playchess.com"]
[Source "ChessBase"]
[SourceQuality "1"]
[WhiteTeam "Liptovska"]
[BlackTeam "Zilina"]
[TimeControl "40/5400+30:1800+30"]

1. e4 {[%emt 0:00:00]} c6 {[%emt 0:01:44]} 2. d4 {[%emt 0:00:00]} d5 {[%emt 0:00:16]} 3. Nc3 {[%emt 0:00:59]} dxe4 4. Nxe4 {[%emt 0:00:06]} Nf6 {[%emt 0:00:30]} 5. Nxf6+ exf6 {[%emt 0:00:07]} 6. Bc4 {[%emt 0:04:27]} Bd6 {[%emt 0:00:25]} 7. Qe2+ {[%emt 0:03:54]} Be7 {[%emt 0:00:41]} 8. c3 {[%emt 0:04:42]} O-O {[%emt 0:00:21]} 9. Qf3 {[%emt 0:05:48]} Be6 {[%emt 0:13:04]} 10. Bxe6 {[%emt 0:04:09]} fxe6 {[%emt 0:00:27]} 11. Ne2 {[%emt 0:00:42]} Qd5 {[%emt 0:02:29]} 12. Qh3 {[%emt 0:05:58]} Bd6 {[%emt 0:04:42]} 13. O-O {[%emt 0:02:26]} Na6 {[%emt 0:01:53]} 14. Re1 {[%emt 0:04:55]} e5 {[%emt 0:07:17]} 15. dxe5 {[%emt 0:07:17]} Bxe5 {[%emt 0:00:37]} 16. Be3 {[%emt 0:01:14]} Rad8 {[%emt 0:10:45]} 17. Ng3 {[%emt 0:09:21]} g6 {[%emt 0:08:35]} 18. f4 {[%emt 0:06:56]} Bc7 {[%emt 0:01:27]} 19. f5 {[%emt 0:01:04]} Bxg3 {[%emt 0:11:07]} 20. hxg3 {[%emt 0:03:14]} c5 {[%emt 0:15:27]} 21. fxg6 {[%emt 0:05:32]} hxg6 {[%emt 0:00:09]} 22. Qg4 {[%emt 0:00:45]} Qf5 {[%emt 0:04:16]} 1/2-1/2

[Event "SVK Extraliga 2019-20"]
[Site "Slovakia"]
[Date "2019.10.20"]
[Round "2.3"]
[White "Mosesov, Danylo"]
[Black "Rigo, Zsolt"]
[Result "1/2-1/2"]
[ECO "E15"]
[WhiteElo "2290"]
[BlackElo "2396"]
[Annotator "ChessBase"]
[PlyCount "64"]
[EventDate "2019.10.19"]
[EventType "team-tourn"]
[EventCountry "SVK"]
[SourceTitle "playchess.com"]
[Source "ChessBase"]
[SourceQuality "1"]
[BlackTeam "Modra"]
[TimeControl "40/5400+30:1800+30"]

1. d4 {[%emt 0:00:00]} Nf6 {[%emt 0:00:00]} 2. c4 {[%emt 0:00:00]} e6 {[%emt 0:00:10]} 3. Nf3 {[%emt 0:00:07]} b6 {[%emt 0:00:43]} 4. g3 {[%emt 0:00:11]} Ba6 {[%emt 0:00:47]} 5. Qc2 {[%emt 0:00:12]} c6 {[%emt 0:09:25]} 6. Bg2 {[%emt 0:07:58]} d5 {[%emt 0:01:39]} 7. Ne5 {[%emt 0:04:29]} Bb4+ {[%emt 0:06:20]} 8. Nc3 {[%emt 0:01:33]} O-O {[%emt 0:00:54]} 9. O-O {[%emt 0:05:33]} Nfd7 {[%emt 0:19:38]} 10. cxd5 {[%emt 0:07:48]} cxd5 {[%emt 0:01:22]} 11. Rd1 {[%emt 0:03:29]} Bb7 {[%emt 0:02:27]} 12. Nd3 {[%emt 0:06:38]} Be7 {[%emt 0:06:42]} 13. e4 {[%emt 0:16:22]} Nf6 {[%emt 0:00:09]} 14. e5 {[%emt 0:01:30]} Ne8 {[%emt 0:06:36]} 15. Nf4 {[%emt 0:03:21]} Nc6 {[%emt 0:02:11]} 16. Be3 {[%emt 0:01:09]} Nb4 {[%emt 0:03:45]} 17. Qe2 {[%emt 0:02:44]} Ba6 {[%emt 0:01:38]} 18. Qd2 {[%emt 0:00:38]} Rc8 {[%emt 0:01:37]} 19. Rac1 {[%emt 0:00:47]} Nc7 {[%emt 0:04:46]} 20. a3 {[%emt 0:02:55]} Nc6 {[%emt 0:00:17]} 21. b4 {[%emt 0:00:21]} Bc4 {[%emt 0:03:03]} 22. Bf1 {[%emt 0:03:11]} b5 {[%emt 0:02:59]} 23. Rb1 {[%emt 0:09:18]} Qd7 {[%emt 0:04:09]} 24. Nh5 {[%emt 0:01:58]} a5 {[%emt 0:01:20]} 25. bxa5 {[%emt 0:03:06]} Bxf1 {[%emt 0:01:10]} 26. Rxf1 {[%emt 0:00:40]} Nxa5 {[%emt 0:00:01]} 27. Bg5 {[%emt 0:00:52]} Nc4 {[%emt 0:03:33]} 28. Qf4 {[%emt 0:00:06]} Nxa3 {[%emt 0:01:38]} 29. Rb3 {[%emt 0:05:48]} Ne8 {[%emt 0:02:09]} 30. Bxe7 {[%emt 0:00:49]} Qxe7 {[%emt 0:00:03]} 31. Nxb5 {[%emt 0:00:18]} Nxb5 {[%emt 0:01:06]} 32. Rxb5 {[%emt 0:00:05]} f6 {[%emt 0:00:17]} 1/2-1/2